bitfinex/quotes_BTCUSD_20260311
["timestamp","ask_amount","ask_price","bid_price","bid_amount"]
[1773199617444,0.00022001,69563.0,69553.0,0.07288762]
[1773199621552,0.00022001,69563.0,69553.0,0.07188762]
[1773199622547,0.00022001,69563.0,69553.0,0.07288762]
[1773199622750,0.00022001,69563.0,69553.0,0.07188762]
[1773199623366,0.00022001,69563.0,69553.0,0.07288762]
[1773199624885,0.03399303,69560.0,69537.0,0.21581937]
[1773199625091,0.03399303,69558.0,69546.0,0.00144]
[1773199625581,0.03399303,69558.0,69545.0,0.07209557]
[1773199625882,0.03399303,69558.0,69547.0,0.00144]
[1773199627095,0.03403106,69556.0,69548.0,0.07189279]
[1773199630323,0.03410887,69555.0,69547.0,0.07333334]
[1773199630525,0.03410887,69555.0,69548.0,0.00144]
[1773199631112,0.07188608,69555.0,69548.0,0.00144]
[1773199631315,0.03410887,69554.0,69548.0,0.00144]
[1773199631525,0.03410887,69554.0,69549.0,0.00144]
[1773199632440,0.07188659,69554.0,69547.0,0.0002]
[1773199632736,0.03414052,69553.0,69548.0,0.00144]
[1773199634339,0.03514052,69553.0,69548.0,0.00144]
[1773199635149,0.03414052,69553.0,69548.0,0.00144]
[1773199635646,0.03414052,69553.0,69548.0,0.07333275]
[1773199636445,0.03414052,69553.0,69548.0,0.00144]
[1773199637320,0.03414052,69553.0,69548.0,0.07333248]
[1773199642771,0.03414052,69553.0,69547.0,0.00164]
[1773199644314,0.03414052,69553.0,69548.0,0.0002]
[1773199648871,0.03414052,69553.0,69549.0,0.00144]
[1773199651778,0.03414052,69553.0,69548.0,0.0002]
[1773199651936,0.03414052,69553.0,69548.0,0.00164]
[1773199653480,0.0718836,69557.0,69548.0,0.07353243]
[1773199655825,0.0718836,69557.0,69548.0,0.07371043]
[1773199656428,0.03584345,69557.0,69548.0,0.07371043]
[1773199657510,0.1077278,69557.0,69548.0,0.07371043]
[1773199658386,0.1067278,69557.0,69548.0,0.07371043]
[1773199658615,0.11437318,69583.0,69558.0,0.09511978]
[1773199658946,0.01377639,69591.0,69578.0,0.03301961]
[1773199659128,0.01377639,69591.0,69584.0,0.11497088]
[1773199659330,0.01377639,69591.0,69585.0,0.14371477]
[1773199659534,0.01377639,69591.0,69586.0,0.14371477]
[1773199659811,0.01377639,69591.0,69587.0,0.14371477]
[1773199660010,0.01377639,69591.0,69588.0,0.14371477]
[1773199660155,0.01377639,69591.0,69589.0,0.14371477]
[1773199660363,0.01377639,69591.0,69590.0,0.14371477]
[1773199661397,0.01377639,69591.0,69585.0,0.00144]
[1773199661816,0.01377639,69591.0,69581.0,0.07185847]
[1773199661994,0.03145436,69590.0,69582.0,0.00144]
[1773199662825,0.03145436,69590.0,69582.0,0.07329693]
[1773199663180,0.01377639,69591.0,69582.0,0.07329693]
[1773199663891,0.01377639,69591.0,69584.0,0.11497088]
[1773199664680,0.00562,69592.0,69584.0,0.11497088]
[1773199664932,0.00562,69592.0,69585.0,0.07185456]
[1773199665303,0.0135926,69619.0,69585.0,0.07185456]
[1773199665304,0.00023,69600.0,69585.0,0.07185456]
[1773199665518,0.00023,69600.0,69590.0,0.04963491]
[1773199665793,0.00023,69600.0,69590.0,0.05107491]
[1773199666440,0.00022001,69591.0,69590.0,0.00144]
[1773199666875,0.00022001,69598.0,69590.0,0.00144]
[1773199667078,0.00022001,69598.0,69591.0,0.07184837]
[1773199668212,0.00022001,69598.0,69591.0,0.07144837]
[1773199671270,0.00022001,69598.0,69582.0,0.17245772]
[1773199671271,0.04060572,69597.0,69582.0,0.17245772]
[1773199671517,0.04060572,69596.0,69583.0,0.17245772]
[1773199671715,0.04060572,69596.0,69583.0,0.17389772]
[1773199671891,0.04060572,69596.0,69583.0,0.00144]
[1773199672736,0.07184424,69595.0,69584.0,0.07185559]
[1773199673031,0.11255533,69595.0,69584.0,0.07185559]
[1773199673434,0.04071109,69596.0,69584.0,0.07185559]
[1773199673642,0.04071109,69595.0,69585.0,0.14400208]
[1773199673840,0.04071109,69595.0,69586.0,0.14256208]
[1773199674002,0.04171109,69595.0,69585.0,0.00144]
[1773199674208,0.04071109,69595.0,69585.0,0.00144]
[1773199674409,0.04071109,69595.0,69581.0,0.07185863]
[1773199674855,0.04111512,69593.0,69582.0,0.00144]
[1773199675354,0.04111512,69593.0,69583.0,0.00144]
[1773199675720,0.04111512,69593.0,69577.0,0.07186179]
[1773199675919,0.04111512,69593.0,69578.0,0.00144]
[1773199676836,0.04114556,69591.0,69579.0,0.07186076]
[1773199677830,0.04114556,69589.0,69577.0,0.00144]
[1773199678989,0.11346882,69588.0,69578.0,0.07186179]
[1773199680161,0.11346882,69588.0,69578.0,0.00011232]
[1773199680362,0.04164086,69587.0,69578.0,0.00011232]
[1773199680962,0.07185353,69586.0,69578.0,0.00011232]
[1773199681279,0.04164086,69585.0,69575.0,0.00144]
[1773199682639,0.04164086,69585.0,69577.0,0.0002]
[1773199683091,0.07185559,69584.0,69577.0,0.0002]
[1773199685191,0.04164086,69585.0,69577.0,0.0002]
[1773199685598,0.07185559,69584.0,69577.0,0.0002]
[1773199686199,0.07185559,69584.0,69578.0,0.14306754]
[1773199686419,0.07185559,69584.0,69579.0,0.14306754]
[1773199686636,0.07185559,69584.0,69580.0,0.14306754]
[1773199686838,0.07185559,69584.0,69581.0,0.14306754]
[1773199687013,0.07185559,69584.0,69582.0,0.14306754]
[1773199687332,0.04164086,69585.0,69583.0,0.14306754]
[1773199687535,0.11349542,69585.0,69584.0,0.14306754]
[1773199689797,0.11349542,69585.0,69577.0,0.0002]
[1773199690722,0.07185456,69585.0,69577.0,0.0002]
[1773199690925,0.07185663,69583.0,69577.0,0.0002]
[1773199693066,0.11402905,69584.0,69577.0,0.0002]
[1773199696387,0.04263655,69583.0,69577.0,0.0002]
[1773199697594,0.04263655,69582.0,69577.0,0.0002]
[1773199700664,0.04263641,69581.0,69577.0,0.0002]
[1773199701868,0.04263641,69580.0,69577.0,0.0002]
[1773199702406,0.04263641,69580.0,69575.0,0.0002]
[1773199702735,0.04263641,69580.0,69570.0,0.0002]
[1773199702936,0.04263641,69580.0,69568.0,0.0002]
[1773199702937,0.04267942,69579.0,69568.0,0.0002]
[1773199703284,0.04267942,69579.0,69563.0,1e-08]
[1773199703285,0.04267942,69577.0,69563.0,1e-08]
[1773199703443,0.04958766,69573.0,69556.0,0.00144]
[1773199703641,0.04267942,69569.0,69554.0,0.00144]
[1773199703854,0.04267942,69569.0,69554.0,0.07343852]
[1773199703855,0.04267942,69567.0,69554.0,0.07343852]
[1773199704072,0.04267942,69567.0,69554.0,0.07199852]
[1773199704279,0.04277142,69567.0,69554.0,0.07343852]
[1773199706176,0.07187419,69566.0,69554.0,0.07343852]
[1773199706422,0.04269343,69565.0,69554.0,0.07343852]
[1773199706626,0.04229343,69565.0,69554.0,0.07343852]
[1773199707291,0.64816527,69564.0,69539.0,0.17245907]
[1773199707500,0.04257587,69559.0,69539.0,0.00048]
[1773199707680,0.04257587,69559.0,69539.0,0.07238194]
[1773199707881,0.04257587,69557.0,69539.0,0.00048]
[1773199708324,0.04268488,69555.0,69540.0,0.00144]
[1773199709632,0.04368488,69555.0,69540.0,0.00144]
[1773199709835,9.2e-05,69560.0,69545.0,0.04958766]
[1773199710031,0.00011222,69564.0,69540.0,0.44772894]
[1773199710032,0.00011222,69564.0,69551.0,0.00340126]
[1773199710201,0.00011222,69564.0,69551.0,0.00484126]
[1773199710401,0.00011222,69564.0,69552.0,0.07188865]
[1773199712627,0.001,69559.0,69552.0,0.07188865]
[1773199713719,0.11513017,69562.0,69552.0,0.07288865]
[1773199714319,0.11513017,69562.0,69552.0,0.07188865]
[1773199714660,0.11513017,69562.0,69552.0,0.07288865]
[1773199715030,0.11513017,69562.0,69552.0,0.07188865]
[1773199715448,0.11513017,69562.0,69552.0,0.07288865]
[1773199716639,0.0432518,69562.0,69552.0,0.07288865]
[1773199717259,0.0432518,69562.0,69553.0,0.00144]
[1773199717863,0.0432518,69562.0,69553.0,0.07332678]
[1773199721391,0.07198897,69564.0,69553.0,0.07332678]
[1773199723110,0.0001523,69569.0,69553.0,0.07332678]
[1773199723302,0.0001523,69569.0,69560.0,0.04100435]
[1773199723479,0.0001523,69569.0,69561.0,0.00144]
[1773199724885,0.04313059,69572.0,69561.0,0.00144]
[1773199725090,0.00023,69575.0,69562.0,0.04100435]
[1773199725291,0.00023,69575.0,69564.0,0.04100435]
[1773199725692,0.00144,69583.0,69566.0,0.04100435]
[1773199725895,0.00144,69583.0,69563.0,0.07187729]
[1773199725896,0.00144,69583.0,69570.0,0.04100435]
[1773199726295,0.07207618,69584.0,69570.0,0.04100435]
[1773199726296,0.00022001,69584.0,69570.0,0.04100435]
[1773199726497,0.07207646,69584.0,69567.0,0.00144]
[1773199726698,0.00022001,69576.0,69568.0,0.04100435]
[1773199727219,0.0433506,69584.0,69568.0,0.04100435]
[1773199727719,0.0433506,69584.0,69569.0,0.11287544]
[1773199727922,0.0433506,69584.0,69570.0,0.04958766]
[1773199728066,0.11520626,69584.0,69569.0,0.11287544]
[1773199728896,0.11520626,69584.0,69570.0,0.04958766]
[1773199729381,0.04223157,69583.0,69570.0,0.04958766]
[1773199729620,0.04223157,69583.0,69571.0,0.07186902]
[1773199730005,0.1140884,69583.0,69571.0,0.07186902]
[1773199730204,0.04223157,69583.0,69571.0,0.07186902]
[1773199730593,0.04223157,69583.0,69571.0,0.07198502]
[1773199731336,0.00022001,69584.0,69572.0,0.04323858]
[1773199731496,0.00022001,69584.0,69573.0,0.07186695]
[1773199731690,0.00022001,69584.0,69573.0,0.11510553]
[1773199732030,0.0720756,69584.0,69573.0,0.11510553]
[1773199732226,0.0720756,69584.0,69573.0,0.11654553]
[1773199732642,0.0720756,69584.0,69573.0,0.07342295]
[1773199734014,0.04223157,69583.0,69573.0,0.001556]
[1773199734214,0.04223157,69583.0,69573.0,0.07342225]
[1773199734417,0.04223157,69582.0,69568.0,0.0002052]
[1773199734743,0.04223157,69579.0,69568.0,0.07207719]
[1773199735723,0.04223157,69579.0,69568.0,0.0002052]
[1773199736355,0.04223157,69577.0,69568.0,0.0720773]
[1773199737048,0.04223157,69577.0,69568.0,0.0002052]
[1773199738486,0.04223157,69576.0,69568.0,0.0002052]
[1773199739066,0.00144,69575.0,69554.0,0.07188607]
[1773199739242,0.04223157,69574.0,69561.0,0.00144]
[1773199739446,0.04223157,69574.0,69558.0,0.07188162]
[1773199739788,0.04223157,69574.0,69558.0,0.07332162]
[1773199740377,0.04223157,69572.0,69558.0,0.07332162]
[1773199741200,0.04223157,69572.0,69556.0,0.0002052]
[1773199741380,0.07186695,69573.0,69556.0,0.07208964]
[1773199741381,0.04223157,69569.0,69556.0,0.07208964]
[1773199741710,0.04367157,69569.0,69556.0,0.07352964]
[1773199741915,0.08805846,69568.0,69554.0,0.07188648]
[1773199742117,0.04223157,69567.0,69554.0,0.07188648]
[1773199742315,0.04223157,69567.0,69555.0,0.00144]
[1773199742620,0.04151272,69565.0,69555.0,0.00144]
[1773199743087,0.04151272,69565.0,69555.0,0.07332538]
[1773199743256,0.04151272,69565.0,69555.0,0.07188538]
[1773199744533,0.04151272,69565.0,69554.0,0.00144]
[1773199744736,0.07187625,69564.0,69554.0,0.00144]
[1773199744934,0.04223157,69563.0,69554.0,0.00144]
[1773199745132,0.04223157,69563.0,69553.0,0.07199964]
[1773199745305,0.04223157,69563.0,69554.0,0.00144]
[1773199746229,0.04223157,69563.0,69555.0,0.0002]
[1773199746717,0.07187816,69563.0,69555.0,0.0002]
[1773199746901,0.11410973,69563.0,69555.0,0.0002]
[1773199747252,0.04223157,69563.0,69555.0,0.0002]
[1773199748006,0.114109,69563.0,69555.0,0.0002]
[1773199748427,0.04223157,69563.0,69555.0,0.0002]
[1773199749309,0.07187411,69567.0,69555.0,0.0002]
[1773199750154,0.11410568,69567.0,69555.0,0.0002]
[1773199750459,0.07187411,69567.0,69555.0,0.0002]
[1773199750660,0.11410568,69567.0,69555.0,0.0002]
[1773199751244,0.07187411,69567.0,69555.0,0.0002]
[1773199751420,0.04223157,69566.0,69555.0,0.0002]
[1773199753580,0.11410582,69566.0,69555.0,0.0002]
[1773199754098,0.04223157,69566.0,69555.0,0.0002]
[1773199754279,0.11410579,69566.0,69555.0,0.0002]
[1773199758987,0.11410579,69566.0,69555.0,0.00144]
[1773199761835,0.11410579,69566.0,69556.0,0.07188452]
[1773199763485,0.11510579,69566.0,69556.0,0.07188452]
[1773199763900,0.1153258,69566.0,69556.0,0.07188452]
[1773199765609,0.00144,69569.0,69557.0,0.03386183]
[1773199765758,0.07187005,69570.0,69559.0,0.04961997]
[1773199765953,0.07187005,69570.0,69559.0,0.0834818]
[1773199766162,0.07186855,69572.0,69559.0,0.03386183]
[1773199766163,0.07186905,69571.0,69559.0,0.03386183]
[1773199766404,0.07186855,69572.0,69559.0,0.03386183]
[1773199767719,0.07186799,69572.0,69560.0,0.07188039]
[1773199768791,0.07186799,69572.0,69560.0,0.12150036]
[1773199769007,0.07186799,69572.0,69561.0,0.00144]
[1773199769323,0.21487563,69573.0,69561.0,0.0340922]
[1773199769705,0.21487563,69573.0,69562.0,0.07187832]
[1773199769906,0.14300846,69573.0,69562.0,0.07187832]
[1773199770073,0.00022001,69573.0,69563.0,0.0326522]
[1773199772706,0.00022001,69573.0,69564.0,0.07187625]
[1773199774263,0.00022001,69573.0,69564.0,0.07287625]
[1773199774463,0.00022001,69573.0,69564.0,0.07187625]
[1773199774764,0.00022001,69573.0,69564.0,0.07287625]
[1773199776845,0.00022001,69573.0,69564.0,0.07187625]
[1773199777228,0.00022001,69573.0,69564.0,0.07287625]
[1773199777519,0.00022001,69573.0,69564.0,0.07187625]
[1773199777725,0.00022001,69573.0,69564.0,0.07287625]
[1773199778088,0.00022001,69573.0,69564.0,0.07187625]
[1773199778284,0.21477265,69577.0,69565.0,0.03006356]
[1773199778505,0.07186313,69577.0,69565.0,0.03006356]
[1773199778785,0.07186313,69577.0,69566.0,0.07187419]
[1773199780501,0.14287563,69578.0,69566.0,0.07187419]
[1773199780722,0.07207564,69584.0,69568.0,0.04961997]
[1773199780723,0.00022001,69584.0,69568.0,0.04961997]
[1773199780928,0.07207621,69584.0,69570.0,0.10490179]
[1773199783030,0.07207621,69584.0,69570.0,0.07187005]
[1773199783234,0.07207621,69584.0,69571.0,0.03303174]
[1773199784418,0.00022001,69584.0,69571.0,0.03303174]
[1773199784640,0.07207582,69584.0,69571.0,0.03303174]
[1773199785149,0.00022001,69578.0,69572.0,0.07186799]
[1773199785714,0.00022001,69578.0,69572.0,0.10489973]
[1773199785918,0.00186521,69585.0,69573.0,0.00144]
[1773199786119,0.00042521,69585.0,69576.0,0.03303174]
[1773199787222,0.00053751,69585.0,69577.0,0.07186282]
[1773199787422,0.00053751,69585.0,69577.0,0.10489456]
[1773199788168,0.00057771,69585.0,69577.0,0.10489456]
[1773199788975,0.00057771,69585.0,69577.0,0.10589456]
[1773199790286,0.00057771,69585.0,69577.0,0.07286282]
[1773199790651,0.00057771,69585.0,69577.0,0.07186282]
[1773199792052,0.00057771,69585.0,69576.0,0.07186282]
[1773199792252,0.00057771,69585.0,69575.0,0.07186282]
[1773199793687,0.00057771,69585.0,69577.0,0.0002]
[1773199796690,0.03400633,69583.0,69571.0,0.00144]
[1773199796913,0.03400633,69583.0,69572.0,0.00144]
[1773199797117,0.03400633,69583.0,69573.0,0.00144]
[1773199797340,0.03425173,69583.0,69573.0,0.00144]
[1773199797586,0.03425173,69583.0,69565.0,0.07187522]
[1773199797719,0.04961997,69580.0,69565.0,0.07187522]
[1773199797913,0.03400633,69579.0,69565.0,0.07187522]
[1773199798346,0.03400633,69577.0,69564.0,0.07207625]
[1773199798560,0.03400633,69575.0,69564.0,0.07207625]
[1773199798922,0.03400633,69575.0,69562.0,0.07331832]
[1773199799092,0.04961997,69572.0,69555.0,0.07208505]
[1773199799248,0.04961997,69572.0,69554.0,0.07208555]
[1773199799249,0.03400633,69571.0,69554.0,0.0002]
[1773199799451,0.03400633,69571.0,69552.0,0.0002]
[1773199799643,0.00144,69576.0,69552.0,0.0002]
[1773199799644,0.03400633,69561.0,69552.0,0.0002]
[1773199799849,0.03400633,69561.0,69552.0,0.07208862]
[1773199800485,0.07188039,69560.0,69552.0,0.07208862]
[1773199800787,0.07188039,69560.0,69552.0,0.07220084]
[1773199801097,0.07188039,69560.0,69552.0,0.00031222]
[1773199801985,0.10588672,69560.0,69554.0,0.0002]
[1773199802786,0.03400633,69559.0,69554.0,0.0002]
[1773199803529,0.07186695,69573.0,69555.0,0.03403689]
[1773199803681,0.00144,69572.0,69555.0,0.03403689]
[1773199803876,0.00144,69572.0,69556.0,0.00144]
[1773199804188,0.001,69559.0,69557.0,0.03403689]
[1773199804387,0.00144,69572.0,69557.0,0.03403689]
[1773199804710,0.07186695,69574.0,69562.0,0.10591521]
[1773199804711,0.00144,69574.0,69562.0,0.10591521]
[1773199805082,0.10587328,69576.0,69562.0,0.10591521]
[1773199805304,0.07186076,69579.0,69563.0,0.03403689]
[1773199805642,0.03400633,69578.0,69563.0,0.03403689]
[1773199805782,0.03500633,69572.0,69556.0,0.03403689]
[1773199805989,0.03400633,69569.0,69557.0,0.00144]
[1773199806511,0.03400633,69569.0,69558.0,0.00144]
[1773199806712,0.03400633,69569.0,69556.0,0.07188397]
[1773199806713,0.03400633,69567.0,69554.0,0.072086]
[1773199806915,0.03400633,69563.0,69554.0,0.00164]
[1773199807335,0.03400633,69563.0,69554.0,0.0002]
[1773199807558,0.03400633,69563.0,69554.0,0.00164]
[1773199808531,0.03500633,69563.0,69554.0,0.00164]
[1773199808739,0.07187832,69562.0,69554.0,0.00164]
[1773199809321,0.07187832,69562.0,69554.0,0.07352627]
[1773199810409,0.07187832,69562.0,69554.0,0.00164]
[1773199811058,0.03400633,69561.0,69554.0,0.00164]
[1773199811262,0.03400633,69561.0,69552.0,0.00175222]
[1773199812587,0.03400633,69561.0,69552.0,0.07364074]
[1773199813362,0.07188039,69560.0,69552.0,0.07364074]
[1773199814361,0.07188039,69560.0,69552.0,0.00175222]
[1773199816319,0.07188039,69560.0,69552.0,0.07364077]
[1773199817955,0.07188039,69560.0,69552.0,0.00175222]
[1773199818099,0.10588672,69560.0,69552.0,0.00175222]
[1773199819314,0.10588672,69560.0,69552.0,0.07364084]
[1773199819520,0.07188039,69560.0,69552.0,0.07464084]
[1773199820515,0.0721004,69560.0,69552.0,0.07464084]
[1773199821699,0.00022001,69560.0,69552.0,0.07464084]
[1773199822243,0.07210083,69560.0,69552.0,0.07464084]
[1773199822803,0.07210083,69560.0,69552.0,0.07364084]
[1773199823202,0.07210083,69560.0,69552.0,0.07464084]
[1773199824554,0.07210083,69560.0,69552.0,0.07364084]
[1773199824725,0.07210083,69560.0,69552.0,0.07464084]
[1773199824933,0.07210083,69560.0,69552.0,0.00130352]
[1773199825155,0.03054418,69559.0,69550.0,0.00144]
[1773199825367,0.03065642,69559.0,69548.0,0.0002]
[1773199825570,0.00144,69558.0,69540.0,0.0002]
[1773199825781,0.03054418,69549.0,69540.0,0.0002]
[1773199827673,0.07189279,69548.0,69540.0,0.0002]
[1773199829465,0.07189279,69548.0,69541.0,0.0002]
[1773199830911,0.03054418,69547.0,69540.0,0.0002]
[1773199831875,0.07189486,69546.0,69540.0,0.0002]
[1773199832070,0.07171209,69546.0,69540.0,0.0002]
[1773199832374,0.07221413,69559.0,69540.0,0.0002]
[1773199832575,0.07332245,69558.0,69542.0,0.0322596]
[1773199833420,0.03054418,69557.0,69542.0,0.0322596]
[1773199834056,0.00033225,69559.0,69548.0,0.0322596]
[1773199834232,0.00033225,69559.0,69550.0,0.0322596]
[1773199835204,0.00022001,69567.0,69550.0,0.0322596]
[1773199835410,0.00022001,69567.0,69557.0,0.0322596]
[1773199835611,0.00022001,69567.0,69559.0,0.0322596]
[1773199835938,0.0004,69569.0,69559.0,0.0322596]
[1773199836258,0.0004,69569.0,69560.0,0.10413999]
[1773199836853,0.00021727,69569.0,69560.0,0.10413999]
[1773199838041,0.00021727,69569.0,69560.0,0.07188039]
[1773199838243,0.00021727,69569.0,69562.0,0.10137736]
[1773199838567,0.07209555,69575.0,69562.0,0.10137736]
[1773199838568,0.00022001,69577.0,69563.0,0.02949904]
[1773199838768,0.07208299,69577.0,69564.0,0.03093904]
[1773199838968,0.00022001,69577.0,69564.0,0.03093904]
[1773199840158,0.00022001,69569.0,69565.0,0.07187522]
[1773199840368,0.00022001,69569.0,69566.0,0.02949904]
[1773199840703,0.00022001,69577.0,69566.0,0.02949904]
[1773199840890,0.0001974,69581.0,69568.0,0.02949904]
[1773199841088,0.0001974,69581.0,69571.0,0.02949904]
[1773199841294,0.0001974,69581.0,69571.0,0.03093904]
[1773199841295,0.00022001,69576.0,69571.0,0.03093904]
[1773199841493,0.00406412,69584.0,69571.0,0.03093904]
[1773199841693,0.00406412,69584.0,69572.0,0.02949904]
[1773199842521,0.00022001,69583.0,69574.0,0.02949904]
[1773199844460,0.00022001,69583.0,69572.0,0.07186695]
[1773199844461,0.07207714,69583.0,69572.0,0.07186695]
[1773199844788,1e-08,69582.0,69572.0,0.07186695]
[1773199845328,1e-08,69582.0,69573.0,0.02949904]
[1773199845728,1e-08,69582.0,69574.0,0.001]
[1773199847713,1e-08,69582.0,69575.0,0.07186489]
[1773199847916,1e-08,69582.0,69575.0,0.10136393]
[1773199849146,1e-08,69582.0,69575.0,0.07186489]
[1773199850867,0.03042067,69582.0,69573.0,0.07186489]
[1773199851069,0.0302379,69582.0,69573.0,0.07186489]
[1773199852708,0.07619243,69584.0,69573.0,0.07186489]
[1773199852709,0.00022001,69585.0,69574.0,0.030433]
[1773199852859,0.07768742,69592.0,69575.0,0.04962985]
[1773199853062,0.00022001,69591.0,69576.0,0.030433]
[1773199853279,0.00022001,69591.0,69580.0,0.030433]
[1773199853607,0.0001927,69594.0,69580.0,0.030433]
[1773199853825,0.0001927,69594.0,69585.0,0.030433]
[1773199853984,0.0001927,69594.0,69586.0,0.031873]
[1773199854176,0.0001927,69594.0,69587.0,0.00144]
[1773199854378,0.00030501,69594.0,69574.0,0.14155186]
[1773199854607,0.03020065,69589.0,69570.0,0.12149887]
[1773199854819,0.03020065,69587.0,69572.0,0.07186799]
[1773199855017,0.03020065,69587.0,69574.0,0.001]
[1773199855422,0.03020065,69587.0,69572.0,0.07186799]
[1773199856062,0.03020065,69587.0,69580.0,0.001]
[1773199856468,0.03020065,69587.0,69572.0,0.07186799]
[1773199857288,0.07328717,69593.0,69578.0,0.02495711]
[1773199857494,0.07184717,69593.0,69580.0,0.04962985]
[1773199857690,0.07184717,69593.0,69579.0,0.02639711]
[1773199857926,0.03020065,69592.0,69579.0,0.00144]
[1773199858136,0.00022001,69587.0,69579.0,0.00144]
[1773199858900,0.0004,69586.0,69579.0,0.00144]
[1773199861219,0.0004,69586.0,69580.0,0.07185972]
[1773199861801,0.0004,69586.0,69579.0,0.00144]
[1773199862035,0.07225354,69586.0,69579.0,0.00144]
[1773199862412,0.07225354,69586.0,69576.0,0.00144]
[1773199862413,0.03020065,69585.0,69576.0,0.00144]
[1773199863511,0.07185559,69584.0,69576.0,0.07330306]
[1773199864731,0.10205568,69585.0,69576.0,0.07330306]
[1773199864868,0.07225354,69586.0,69576.0,0.09719466]
[1773199865485,0.07225354,69586.0,69576.0,0.07330306]
[1773199867328,0.0720761,69584.0,69576.0,0.07330306]
[1773199869125,0.0720761,69584.0,69576.0,0.07186306]
[1773199869344,0.0720761,69584.0,69577.0,0.00144]
[1773199869558,0.0720761,69584.0,69577.0,0.07330277]
[1773199870762,0.03020065,69583.0,69568.0,0.0720718]
[1773199870982,0.03020065,69583.0,69569.0,0.00144]
[1773199871186,0.03020065,69583.0,69568.0,0.0720718]
[1773199871395,0.03020065,69581.0,69570.0,0.00144]
[1773199871826,0.03020065,69581.0,69571.0,0.00144]
[1773199872153,0.03020065,69581.0,69546.0,0.28609622]
[1773199872360,0.03001788,69580.0,69562.0,0.07187782]
[1773199872563,0.03001788,69580.0,69565.0,0.00144]
[1773199872786,0.03145788,69580.0,69565.0,0.00144]
[1773199872995,0.03145788,69580.0,69566.0,0.00144]
[1773199873650,0.03020065,69578.0,69566.0,0.00144]
[1773199873869,0.03020065,69578.0,69560.0,0.07187995]
[1773199873870,0.03020065,69575.0,69557.0,0.0001927]
[1773199874083,0.03020065,69569.0,69557.0,0.0001927]
[1773199874288,0.03145786,69569.0,69557.0,0.0001927]
[1773199875423,0.03145786,69569.0,69557.0,0.00027341]
[1773199876002,0.03020065,69567.0,69557.0,0.00027341]
[1773199877755,0.03020065,69567.0,69557.0,0.00047341]
[1773199878140,0.03020065,69565.0,69557.0,0.00047341]
[1773199878344,0.03020065,69565.0,69552.0,0.00144]
[1773199878598,0.03001784,69560.0,69546.0,0.07208754]
[1773199878798,0.03013008,69560.0,69550.0,0.00164]
[1773199880205,0.07188142,69559.0,69550.0,0.00164]
[1773199880363,0.02637668,69558.0,69550.0,0.00164]
[1773199882194,0.07188349,69557.0,69550.0,0.00164]
[1773199882792,0.07188349,69557.0,69550.0,0.0002]
[1773199882983,0.02637668,69556.0,69550.0,0.0002]
[1773199884673,0.09826127,69556.0,69550.0,0.0002]
[1773199884988,0.09807844,69556.0,69550.0,0.0002]
[1773199885600,0.07188459,69556.0,69550.0,0.0002]
[1773199886650,0.09826127,69556.0,69551.0,0.00144]
[1773199887617,0.09826127,69556.0,69543.0,0.0002]
[1773199887618,0.02637668,69555.0,69543.0,0.0002]
[1773199887842,0.02637668,69552.0,69544.0,0.00144]
[1773199888042,0.02619388,69552.0,69544.0,0.00144]
[1773199888450,0.02619388,69552.0,69543.0,0.00164]
[1773199888655,0.02619388,69552.0,69543.0,0.0002]
[1773199888656,0.07188969,69551.0,69543.0,0.0002]
[1773199888961,0.09826637,69551.0,69543.0,0.0002]
[1773199889163,0.07188969,69551.0,69542.0,0.0002]
[1773199889322,0.02637668,69550.0,69542.0,0.0002]
[1773199890064,0.02637668,69550.0,69543.0,0.001]
[1773199890661,0.07189175,69549.0,69543.0,0.001]
[1773199890817,0.07152606,69549.0,69543.0,0.001]
[1773199891213,0.07189175,69550.0,69543.0,0.001]
[1773199891453,0.07189175,69550.0,69542.0,0.0002]
[1773199891660,0.07170889,69550.0,69542.0,0.0002]
[1773199891830,0.07152602,69550.0,69542.0,0.0002]
[1773199892579,0.07152602,69550.0,69542.0,0.07209886]
[1773199893786,0.07188762,69553.0,69542.0,0.07209886]
[1773199895996,0.07188762,69553.0,69542.0,0.07309886]
[1773199897515,0.07188762,69553.0,69542.0,0.07408486]
[1773199897881,0.04972243,69560.0,69542.0,0.07408486]
[1773199897882,0.07209988,69561.0,69546.0,0.02151673]
[1773199898080,0.02781668,69565.0,69551.0,0.02134626]
[1773199898279,0.09969196,69565.0,69551.0,0.02134626]
[1773199898529,0.02541251,69564.0,69550.0,0.04961019]
[1773199898815,0.02541251,69564.0,69547.0,0.02278626]
[1773199899121,0.001,69561.0,69547.0,0.02278626]
[1773199899884,0.001,69561.0,69551.0,0.07188969]
[1773199900706,0.0972888,69564.0,69551.0,0.07188969]
[1773199901304,0.0972888,69564.0,69550.0,0.07389003]
[1773199901305,0.02541251,69563.0,69550.0,0.07389003]
[1773199901476,0.07187629,69564.0,69550.0,0.09386658]
[1773199901677,0.07187629,69564.0,69550.0,0.14347677]
[1773199901975,0.00022001,69553.0,69552.0,0.07188865]
[1773199902218,0.00022001,69553.0,69552.0,0.00144]
[1773199902424,0.00022001,69560.0,69552.0,0.00144]
[1773199904127,0.00022001,69560.0,69553.0,0.07188762]
[1773199910686,0.07210104,69560.0,69552.0,0.00144]
[1773199910852,0.07210104,69560.0,69553.0,0.00144]
[1773199911768,0.0977768,69560.0,69553.0,0.00144]
[1773199913196,0.02589577,69560.0,69554.0,0.07188659]
[1773199913357,0.00022001,69560.0,69554.0,0.07188659]
[1773199913558,0.0718782,69564.0,69554.0,0.07188659]
[1773199915194,0.07209361,69567.0,69555.0,0.01928865]
[1773199915394,0.02567576,69566.0,69554.0,0.07188659]
[1773199915800,0.02534955,69566.0,69554.0,0.07188659]
[1773199917606,0.02567576,69565.0,69554.0,0.07188659]
[1773199917814,0.02567576,69565.0,69554.0,0.07288659]
[1773199919025,0.02567576,69565.0,69554.0,0.07188659]
[1773199920456,0.07209328,69567.0,69554.0,0.07188659]
[1773199920631,0.00022001,69574.0,69558.0,0.02645108]
[1773199920932,0.00144,69583.0,69565.0,0.02645108]
[1773199921077,0.07613984,69584.0,69571.0,0.02645108]
[1773199921078,0.07757984,69584.0,69571.0,0.02645108]
[1773199921525,0.07757984,69584.0,69572.0,0.07330799]
[1773199922327,0.00583643,69584.0,69573.0,0.02645108]
[1773199922711,0.0002172,69588.0,69573.0,0.02645108]
[1773199922913,0.0002172,69588.0,69578.0,0.02645108]
[1773199923117,0.0002172,69588.0,69580.0,0.02645108]
[1773199923509,0.00022001,69591.0,69581.0,0.07185869]
[1773199923772,0.00022001,69591.0,69582.0,0.02645108]
[1773199924051,0.00022001,69591.0,69581.0,0.07185869]
[1773199924052,0.07206846,69591.0,69581.0,0.07185869]
[1773199924251,0.02567576,69590.0,69579.0,0.07186067]
[1773199924475,0.02567576,69590.0,69574.0,0.0718657]
[1773199924673,0.02567576,69590.0,69573.0,0.0729789]
[1773199924984,0.02567576,69590.0,69574.0,0.00144]